bitfinex/quotes_ETHUSD_20241104
["timestamp","ask_amount","ask_price","bid_price","bid_amount"]
[1730707279690,5.72680992,2463.3,2463.0,1.55983252]
[1730707279892,9.78647992,2463.3,2463.0,1.55983252]
[1730707280100,5.72680992,2463.3,2463.0,1.55983252]
[1730707280359,4.05978,2463.2,2463.0,1.55983252]
[1730707280642,4.05978,2463.2,2462.9,0.55]
[1730707282412,8.11966,2463.2,2462.9,0.55]
[1730707282713,4.05978,2463.2,2462.9,0.55]
[1730707283222,8.11967,2463.2,2462.9,0.55]
[1730707283424,4.05978,2463.2,2462.9,0.55]
[1730707283626,4.05978,2463.2,2462.9,1.46973495]
[1730707284129,4.06008,2463.0,2462.8,3.0]
[1730707284331,1.66720992,2462.9,2462.7,3.55]
[1730707284658,4.05996,2463.1,2462.7,7.69177138]
[1730707284659,1.66720992,2463.1,2462.7,7.69177138]
[1730707284934,4.05985,2463.2,2462.7,7.61057]
[1730707285096,8.11969,2463.2,2462.8,1.32381779]
[1730707285302,5.72690992,2463.3,2462.9,1.3599]
[1730707285526,5.72689992,2463.3,2462.9,1.3599]
[1730707285730,4.05987,2463.2,2462.9,1.3599]
[1730707286124,5.72689992,2463.3,2462.9,1.3599]
[1730707286301,5.72689992,2463.3,2463.0,0.6662919]
[1730707288248,4.05969,2463.3,2463.0,0.6662919]
[1730707288404,4.05894,2463.7,2463.2,0.776]
[1730707288405,4.05913,2463.6,2463.2,0.776]
[1730707288611,4.05933,2463.5,2463.2,0.776]
[1730707288912,5.72653992,2463.5,2463.2,0.776]
[1730707289147,5.72653992,2463.5,2463.2,1.33435436]
[1730707289148,4.05944,2463.4,2463.2,1.33435436]
[1730707292429,5.72653992,2463.5,2463.2,1.33435436]
[1730707293245,4.05944,2463.4,2463.2,1.33435436]
[1730707293605,1.66720992,2463.3,2463.2,1.33435436]
[1730707293914,5.72679992,2463.3,2463.1,0.55]
[1730707294122,1.66720992,2463.3,2463.1,0.55]
[1730707294836,4.05985,2463.2,2463.0,0.8178]
[1730707295766,5.72686992,2463.3,2463.0,0.8178]
[1730707295946,5.72686992,2463.3,2463.0,0.89899185]
[1730707296354,5.72686992,2463.3,2463.0,1.20326946]
[1730707296656,5.72686992,2463.3,2463.0,0.89899185]
[1730707296860,5.72686992,2463.3,2463.0,1.20327005]
[1730707297239,5.72686992,2463.3,2463.0,1.20330934]
[1730707297444,5.72686992,2463.3,2463.0,1.12211749]
[1730707297625,5.72686992,2463.3,2463.0,1.20330936]
[1730707298064,1.66720992,2463.3,2463.0,4.20330936]
[1730707298365,5.72680992,2463.3,2463.1,0.84360684]
[1730707298545,4.05945,2463.4,2463.1,0.84360684]
[1730707298726,4.05945,2463.4,2463.1,1.14794988]
[1730707298924,4.05945,2463.4,2463.1,1.22913783]
[1730707299128,4.05945,2463.4,2463.2,0.91070078]
[1730707299731,1.66720992,2463.5,2463.2,0.91070078]
[1730707299932,4.8444,2463.6,2463.2,0.91070078]
[1730707300134,4.0592,2463.6,2463.3,0.804]
[1730707301048,4.0592,2463.6,2463.3,0.88518475]
[1730707301594,4.05886,2463.8,2463.3,0.88518475]
[1730707301595,4.05886,2463.8,2463.4,0.55]
[1730707301745,2.55125072,2463.9,2463.6,0.8077]
[1730707301746,1.72895072,2463.9,2463.6,0.8077]
[1730707302085,5.78757072,2463.9,2463.6,0.8077]
[1730707305865,1.72895072,2463.9,2463.6,0.8077]
[1730707306699,5.78762072,2463.9,2463.6,0.8077]
[1730707307004,4.05893,2463.7,2463.6,1.3577]
[1730707307182,4.05885,2463.8,2463.6,1.3577]
[1730707308593,8.11775,2463.8,2463.6,1.3577]
[1730707308794,4.05893,2463.7,2463.6,1.3577]
[1730707309375,5.72613992,2463.7,2463.6,1.3577]
[1730707310835,4.05893,2463.7,2463.6,1.3577]
[1730707311333,1.72895072,2463.9,2463.7,0.55]
[1730707313233,1.72895072,2463.9,2463.7,1.14663905]
[1730707314443,0.0617408,2463.9,2463.7,1.14663905]
[1730707314746,0.0617408,2463.9,2463.7,1.22780999]
[1730707314899,0.0617408,2463.9,2463.7,5.28672999]
[1730707315235,0.0617408,2463.9,2463.8,5.41587]
[1730707315438,0.0617408,2463.9,2463.8,6.43113]
[1730707315731,0.0617408,2463.9,2463.8,6.51229357]
[1730707316545,0.0617408,2463.9,2463.8,6.43113]
[1730707316847,0.0617408,2463.9,2463.8,6.51229362]
[1730707318161,0.0617408,2463.9,2463.8,9.51229362]
[1730707318351,0.0617408,2463.9,2463.8,9.43113]
[1730707332450,1.72895072,2463.9,2463.8,1.01526]
[1730707332618,1.72895072,2463.9,2463.5,0.54947047]
[1730707332619,2.48945072,2463.9,2463.5,4.0592]
[1730707332973,1.66720992,2463.7,2463.4,4.881]
[1730707333138,1.66720992,2463.7,2463.5,4.05914]
[1730707333443,2.48945072,2463.9,2463.6,4.0591]
[1730707333755,2.48945072,2463.9,2463.7,4.05893]
[1730707334728,2.48945072,2463.9,2463.8,4.60877]
[1730707334729,0.0617408,2463.9,2463.8,4.60877]
[1730707335912,0.0617408,2463.9,2463.8,4.68993449]
[1730707336146,0.0617408,2463.9,2463.8,5.64404094]
[1730707339021,0.0617408,2463.9,2463.8,5.56287645]
[1730707344283,1.72895072,2463.9,2463.7,0.55]
[1730707344986,0.8148,2463.8,2463.5,8.11835]
[1730707345147,0.8148,2463.8,2463.5,8.11832]
[1730707345353,0.8148,2463.8,2463.6,0.90739555]
[1730707345883,1.66720992,2463.7,2463.6,0.90739555]
[1730707346185,1.66720992,2463.7,2463.6,1.45739555]
[1730707348977,1.66720992,2463.7,2463.4,8.01497549]
[1730707348978,0.7868,2463.6,2463.4,0.42412548]
[1730707349147,0.7902,2463.3,2463.1,1.53260692]
[1730707349355,1.66720992,2463.2,2462.8,9.53318574]
[1730707349553,1.66720992,2463.2,2462.9,7.68267346]
[1730707349858,1.66720992,2463.2,2463.0,0.30405373]
[1730707350053,1.66720992,2463.2,2462.9,1.30460737]
[1730707350258,1.66720992,2463.2,2462.9,5.75011305]
[1730707350450,1.66720992,2463.2,2462.9,4.14142456]
[1730707351647,1.66720992,2463.0,2462.9,0.55]
[1730707355196,0.8027,2462.9,2462.4,4.061]
[1730707355534,0.8027,2462.4,2462.1,4.06146]
[1730707355797,0.8027,2462.4,2462.2,0.08121966]
[1730707356293,0.8027,2462.4,2462.2,4.14260966]
[1730707356654,1.66720992,2462.3,2461.9,4.06182]
[1730707356867,1.66720992,2462.1,2461.8,4.06202]
[1730707357073,1.66720992,2462.1,2461.9,0.406202]
[1730707357521,1.66720992,2462.1,2461.6,4.0623]
[1730707357810,1.66720992,2461.9,2461.7,4.06223]
[1730707358179,4.06126,2462.3,2461.8,4.61206]
[1730707358180,1.66720992,2462.1,2461.8,4.61206]
[1730707358381,0.821,2462.0,2461.8,4.61206]
[1730707358579,0.821,2462.0,2461.5,0.774]
[1730707358580,1.66720992,2461.9,2461.5,4.06245]
[1730707358782,1.66720992,2461.9,2461.5,4.06256]
[1730707358783,1.66720992,2461.6,2461.5,4.06256]
[1730707359281,4.68912209,2462.0,2461.5,4.06256]
[1730707359488,8.75089209,2462.0,2461.5,4.06256]
[1730707360395,8.75089209,2462.0,2461.5,0.55]
[1730707360602,8.75086209,2462.0,2461.5,4.61253]
[1730707361189,8.75086209,2462.0,2461.5,1.49875221]
[1730707361386,8.75086209,2462.0,2461.6,4.06239]
[1730707361782,4.68912209,2462.0,2461.6,4.06239]
[1730707362774,8.75090209,2462.0,2461.5,5.480051]
[1730707363207,8.75090209,2462.0,2461.5,5.56129224]
[1730707363779,8.75090209,2462.0,2461.5,5.480051]
[1730707364288,8.75090209,2462.0,2461.5,5.56129226]
[1730707364696,8.75090209,2462.0,2461.5,5.480051]
[1730707364900,8.75090209,2462.0,2461.5,5.56129228]
[1730707365293,8.75090209,2462.0,2461.5,5.480051]
[1730707369587,8.75090209,2462.0,2461.6,0.9542631]
[1730707371788,8.75090209,2462.0,2461.6,5.0166531]
[1730707372424,8.75090209,2462.0,2461.6,0.9542631]
[1730707372834,4.06178,2462.0,2461.6,0.9542631]
[1730707373524,4.86427,2462.1,2461.6,0.9542631]
[1730707373832,0.8026,2462.1,2461.7,4.70000071]
[1730707374021,0.8026,2462.1,2461.8,4.06198]
[1730707374202,0.8026,2462.1,2461.9,0.55]
[1730707375002,0.8026,2462.1,2461.7,4.61883931]
[1730707375199,4.86424,2462.1,2461.7,0.55667931]
[1730707375930,4.8887,2461.9,2461.5,4.48691953]
[1730707376139,4.8887,2461.9,2461.5,0.42443953]
[1730707376329,0.8268,2461.9,2461.5,4.61247]
[1730707376712,0.8268,2461.2,2460.7,0.792]
[1730707377050,3.86812209,2461.7,2460.5,0.01]
[1730707377051,3.86812209,2460.9,2460.5,4.06418]
[1730707377713,7.93073209,2461.5,2460.8,4.0636]
[1730707377915,4.06292,2461.3,2460.8,8.12723]
[1730707378315,4.06292,2461.3,2460.8,4.0636]
[1730707378520,4.06292,2461.3,2460.8,4.876351]
[1730707379041,3.86812209,2461.2,2460.8,4.876351]
[1730707379339,4.06284,2461.4,2460.9,0.63126561]
[1730707379554,3.86812209,2461.2,2460.8,0.812751]
[1730707379700,3.86812209,2461.2,2460.5,0.42450571]
[1730707379701,3.86812209,2460.9,2460.5,4.48861571]
[1730707380017,4.66562209,2460.9,2460.5,4.06411]
[1730707380716,8.72918209,2460.9,2460.5,4.06411]
[1730707381042,4.66562209,2460.9,2460.5,4.958815]
[1730707381715,0.8183,2461.1,2460.7,4.06379]
[1730707382433,0.8183,2461.1,2460.8,4.0637]
[1730707383245,0.8183,2461.1,2460.7,4.61386]
[1730707383449,0.8183,2461.1,2460.7,1.5072565]
[1730707383755,0.8183,2461.1,2460.8,4.06362]
[1730707384116,4.88152,2461.1,2460.7,4.61383]
[1730707384823,4.88152,2461.1,2460.5,4.06409]
[1730707384824,3.86812209,2460.9,2460.5,4.06409]
[1730707385022,3.86812209,2460.9,2460.6,4.06396]
[1730707386639,0.8006,2460.8,2460.5,4.06409]
[1730707387165,0.8006,2460.8,2460.5,4.06408]
[1730707387317,0.8006,2460.8,2460.5,4.552338]
[1730707388215,0.8006,2460.8,2460.6,4.06397]
[1730707389238,4.64822209,2460.9,2460.7,4.06388]
[1730707390357,4.64822209,2460.9,2460.6,4.06403]
[1730707390736,4.64822209,2460.9,2460.7,4.06381]
[1730707391264,4.64822209,2460.9,2460.8,4.06371]
[1730707391427,0.7933,2461.1,2460.8,4.06371]
[1730707391630,0.7933,2461.1,2460.8,4.06362]
[1730707392348,0.7933,2461.1,2460.6,4.06396]
[1730707392659,0.7798,2460.8,2460.6,4.06396]
[1730707392969,0.7798,2460.8,2460.5,0.488258]
[1730707393136,0.7798,2460.8,2460.4,8.12855]
[1730707393335,0.7798,2460.8,2460.5,4.0642]
[1730707393667,0.7798,2460.8,2460.4,4.06437]
[1730707393668,4.84354,2460.8,2460.4,4.06437]
[1730707393826,0.7798,2460.8,2460.4,4.06437]
[1730707394365,4.84353,2460.8,2460.4,4.06437]
[1730707394966,3.86812209,2460.6,2460.3,4.06445]
[1730707395173,4.06438,2460.4,2460.0,4.06494]
[1730707395468,0.8048,2460.2,2459.9,4.06513]
[1730707395630,0.8048,2460.2,2459.7,4.81769]
[1730707395823,3.86812209,2460.0,2459.7,4.63219082]
[1730707396062,4.8859,2459.9,2459.4,4.06594]
[1730707396274,3.86812209,2459.7,2459.3,4.06618]
[1730707396455,3.86812209,2459.7,2459.3,4.06611]
[1730707396629,3.86812209,2459.7,2459.3,8.13219]
[1730707396830,3.86812209,2459.7,2459.2,0.66700474]
[1730707397133,0.8206,2460.2,2460.0,4.06495]
[1730707397340,0.8206,2460.4,2460.2,4.06471]
[1730707397525,3.86812209,2460.6,2460.2,4.06471]
[1730707397727,0.8206,2460.7,2460.5,4.06421]
[1730707398077,3.86812209,2460.9,2460.3,0.08128619]
[1730707398281,3.86812209,2460.9,2460.8,4.06371]
[1730707398630,3.86812209,2460.9,2460.4,0.7874]
[1730707398835,3.86812209,2460.9,2460.7,4.06384]
[1730707399969,3.86812209,2460.9,2460.8,4.06371]
[1730707400347,3.86812209,2461.2,2460.9,4.06347]
[1730707400561,4.66402209,2461.2,2460.9,4.06347]
[1730707400769,4.66402209,2461.5,2461.2,4.06305]
[1730707400999,8.72659209,2461.5,2461.0,4.06334]
[1730707401493,8.72659209,2461.5,2460.9,0.8041]
[1730707401494,4.66402209,2461.5,2461.2,4.06296]
[1730707401643,4.66402209,2461.5,2461.3,4.06273]
[1730707402161,4.66402209,2461.5,2461.2,4.06303]
[1730707402884,4.66402209,2461.5,2461.3,4.06287]
[1730707403690,4.66402209,2461.5,2461.4,4.06272]
[1730707403691,3.86812209,2461.5,2461.4,4.06272]
[1730707404012,4.06178,2462.0,2461.4,4.06272]
[1730707404013,0.7904,2462.0,2461.7,4.06215]
[1730707404300,3.86812209,2461.8,2461.6,4.06238]
[1730707404501,3.86812209,2461.8,2461.5,0.55]
[1730707404502,3.86812209,2461.8,2461.5,4.61255]
[1730707404655,3.86812209,2461.8,2461.3,4.06285]
[1730707404862,3.86812209,2461.5,2461.3,4.06285]
[1730707405413,3.86812209,2461.5,2461.2,4.06304]
[1730707405593,0.8066,2461.6,2461.2,4.902494]
[1730707405788,0.8066,2461.6,2461.4,4.06272]
[1730707406002,0.8066,2461.6,2461.3,4.06288]
[1730707406698,0.8066,2461.6,2461.4,4.06264]
[1730707406901,3.86812209,2461.8,2461.4,4.06259]
[1730707407117,3.86812209,2461.8,2461.5,4.06247]
[1730707408185,3.86812209,2461.8,2461.6,4.06237]
[1730707408706,3.86812209,2461.8,2461.6,4.06232]
[1730707409106,0.8162,2461.9,2461.6,4.06232]
[1730707409404,3.86812209,2462.1,2461.8,4.06206]
[1730707409705,3.86812209,2462.1,2461.6,4.06228]
[1730707409859,3.86812209,2462.1,2461.7,4.06214]
[1730707410264,4.81392,2462.2,2461.8,4.06197]
[1730707410265,0.7525,2462.2,2461.8,4.06197]
[1730707410663,4.69731898,2462.3,2462.0,4.06162]
[1730707410664,0.63607898,2462.3,2462.0,4.06162]
[1730707410878,0.81,2462.4,2462.2,0.55]
[1730707411219,0.01,2463.1,2461.9,0.63122778]
[1730707411220,0.6359682,2462.8,2462.6,4.06072]
[1730707411369,0.7602,2462.9,2462.6,4.06072]
[1730707411710,0.7602,2462.9,2462.3,0.7584]
[1730707411711,0.7602,2462.9,2462.5,0.0812152]
[1730707411859,0.7602,2463.1,2462.8,4.06041]
[1730707412061,0.7602,2463.1,2462.8,8.12075]
[1730707412261,0.7602,2463.1,2462.7,4.06057]
[1730707412689,4.06009,2463.0,2462.6,0.55]
[1730707412914,0.7602,2463.1,2462.6,0.55]
[1730707413138,0.7602,2463.1,2462.7,4.06057]
[1730707413463,0.7602,2463.1,2462.7,8.12105]
[1730707413705,0.7602,2463.1,2462.8,4.06031]
[1730707414088,0.7602,2463.1,2462.7,8.12097]
[1730707414276,0.7602,2463.1,2462.7,8.12096]
[1730707414688,0.7602,2463.1,2462.9,4.06023]
[1730707415362,4.8161,2463.3,2462.9,4.06023]
[1730707415563,4.8161,2463.3,2462.7,8.988086]
[1730707415790,4.8161,2463.3,2462.7,4.927506]
[1730707415997,4.8161,2463.3,2462.8,4.86297]
[1730707415998,0.7565,2463.3,2462.8,4.86297]
[1730707416225,0.7565,2463.3,2462.9,0.5811269]
[1730707416411,0.7565,2463.3,2463.0,0.55]
[1730707416625,0.7565,2463.3,2463.0,4.61]
[1730707416826,0.7565,2463.3,2463.0,8.67001]
[1730707417139,0.7565,2463.3,2463.0,5.61537369]
[1730707417799,0.7565,2463.3,2462.9,0.5811269]
[1730707418004,4.81609,2463.3,2462.8,4.14146199]
[1730707418233,4.81609,2463.3,2462.9,4.06022]
[1730707419005,0.7565,2463.3,2462.7,7.61042]
[1730707419235,0.7565,2463.3,2462.8,0.08119924]
[1730707419604,4.81609,2463.3,2462.8,4.06041]
[1730707420061,4.81609,2463.3,2462.9,4.06024]
[1730707420399,0.7565,2463.3,2462.9,4.06024]
[1730707420743,0.7565,2463.3,2462.8,0.08119927]
[1730707420744,4.05976,2463.2,2462.8,4.0604]
[1730707420954,0.7565,2463.3,2462.9,4.06024]
[1730707421242,0.7565,2463.3,2462.9,4.06015]
[1730707421631,0.7565,2463.3,2462.9,8.12033]
[1730707422502,0.7565,2463.3,2463.0,4.05996]
[1730707422703,9.44463951,2463.6,2463.2,4.05974]
[1730707422945,9.44463951,2463.6,2463.2,8.11942]
[1730707422946,0.8192,2463.6,2463.2,8.11942]
[1730707423150,0.8192,2463.6,2463.3,4.05951]
[1730707423718,0.8192,2463.6,2463.2,4.871602]
[1730707424241,0.8192,2463.6,2463.2,4.871652]
[1730707424540,0.8192,2463.6,2463.3,4.05951]
[1730707425325,0.8192,2463.6,2463.2,0.811942]
[1730707425528,0.8192,2463.6,2463.3,8.11907]
[1730707425712,0.8192,2463.6,2463.4,4.05941]
[1730707427154,4.62793031,2463.9,2463.8,4.05877]
[1730707427155,0.0617408,2463.9,2463.8,4.05877]
[1730707427657,0.0617408,2463.9,2463.8,4.60877]
[1730707429045,0.0617408,2463.9,2463.8,4.68993582]
[1730707429362,0.0617408,2463.9,2463.8,5.5648064]
[1730707430734,0.0617408,2463.9,2463.8,9.30814058]
[1730707431054,0.8272,2464.6,2464.2,4.60804]
[1730707431222,4.88472,2464.6,2464.2,4.60804]
[1730707431427,4.88472,2464.6,2464.3,0.460804]
[1730707431969,4.0577,2464.5,2463.9,4.05846]
[1730707432158,4.05792,2464.4,2464.0,4.05843]
[1730707432541,4.05796,2464.3,2463.8,4.69937058]
[1730707432860,4.0586,2463.9,2463.4,0.7797]
[1730707433154,0.7746,2463.8,2463.3,4.05945]
[1730707433354,4.83344,2463.8,2463.3,8.11897]
[1730707433560,0.7746,2463.8,2463.2,4.05974]
[1730707433761,4.0592,2463.6,2463.1,4.05992]
[1730707433969,4.0592,2463.6,2463.2,0.405992]
[1730707434472,4.05927,2463.5,2463.2,0.405992]
[1730707434833,0.7746,2463.8,2463.2,4.465702]
[1730707434834,4.05896,2463.7,2463.2,4.465702]
[1730707435035,4.05914,2463.6,2463.2,0.405992]
[1730707436960,4.05927,2463.5,2463.0,0.55]
[1730707437134,4.05927,2463.5,2463.0,4.61006]
[1730707438049,4.05927,2463.5,2463.1,4.05989]
[1730707438294,4.05927,2463.5,2463.0,4.61006]
[1730707438465,4.05943,2463.4,2463.0,0.55]
[1730707438810,4.05943,2463.4,2462.9,4.61021]
[1730707439010,4.05943,2463.4,2463.0,0.837753]
[1730707439011,4.83863,2463.4,2463.0,0.837753]
[1730707439410,4.0596,2463.3,2463.0,0.837753]
[1730707439614,4.0596,2463.3,2462.1,1.63528]
[1730707439615,4.05962,2463.3,2462.7,4.06056]
[1730707439907,4.05977,2463.2,2462.7,4.06056]
[1730707440111,4.05981,2463.2,2462.6,4.82214]
[1730707440310,4.06007,2463.1,2462.7,0.482214]
[1730707440516,4.0597,2463.3,2462.7,0.482214]
[1730707440697,4.0597,2463.3,2462.8,4.06033]
[1730707440900,4.0597,2463.3,2462.7,4.06056]
[1730707440901,4.0598,2463.2,2462.7,4.06056]
[1730707441568,4.0597,2463.3,2462.7,4.0605]
[1730707442010,8.11939,2463.3,2462.8,4.06038]
[1730707442621,4.83869,2463.4,2463.0,0.55]
[1730707442817,4.83869,2463.4,2463.0,4.61007]
[1730707442987,4.83869,2463.4,2463.1,0.461007]
[1730707444023,8.89828,2463.4,2463.1,0.461007]
[1730707444222,4.83869,2463.4,2463.1,0.461007]
[1730707445788,0.7792,2463.4,2463.1,0.461007]
[1730707445941,0.7792,2463.4,2462.8,0.55]
[1730707445942,4.05984,2463.2,2462.8,0.55]
[1730707446696,4.05959,2463.3,2462.8,4.6104]
[1730707446949,4.05959,2463.3,2462.8,8.67074]
[1730707447112,8.70186642,2463.4,2462.9,4.93530408]
[1730707447313,4.05959,2463.3,2462.9,4.93530408]
[1730707447709,4.05977,2463.2,2462.9,0.87519408]
[1730707447910,4.06037,2462.9,2462.3,4.06122]
[1730707448110,4.82528,2463.0,2462.5,4.06082]
[1730707448318,4.82528,2463.0,2462.4,4.06104]
[1730707448319,4.06038,2462.9,2462.4,4.06104]
[1730707448531,4.06044,2462.8,2462.4,4.06104]
[1730707449136,4.06029,2462.9,2462.4,8.12201]
[1730707449305,4.06029,2462.9,2462.5,1.362201]
[1730707449937,7.92350642,2462.8,2462.5,1.362201]
[1730707450449,3.86308642,2462.8,2462.5,0.812201]
[1730707450662,4.06029,2462.9,2462.5,0.812201]
[1730707451169,8.12066,2462.9,2462.5,0.812201]
[1730707451319,4.06044,2462.8,2462.5,0.812201]
[1730707451520,4.06028,2462.9,2462.5,0.812201]
[1730707451819,4.8253,2463.0,2462.6,4.5480661]
[1730707452020,0.7563,2463.2,2462.7,4.61043]
[1730707452222,0.7563,2463.2,2462.8,4.0603]
[1730707452629,4.05895,2463.7,2462.7,4.61043]
[1730707452630,4.05937,2463.5,2462.9,0.55]
[1730707452851,4.85493,2463.5,2463.0,0.7805]
[1730707453056,4.05959,2463.3,2463.1,0.484063]
[1730707453280,4.05945,2463.4,2463.1,0.484063]
[1730707453863,4.05967,2463.3,2462.8,4.06031]
[1730707454038,4.05967,2463.3,2462.9,0.55]
[1730707454440,4.05967,2463.3,2462.9,4.61024]
[1730707454630,4.05967,2463.3,2462.9,0.55]
[1730707455138,4.05967,2463.3,2462.9,4.61024]
[1730707455340,4.05967,2463.3,2463.0,0.944014]
[1730707456057,3.86308642,2463.4,2463.0,5.004054]
[1730707456363,7.92254642,2463.4,2463.0,5.004054]
[1730707456925,3.86308642,2463.4,2463.0,5.004054]
[1730707457147,8.91425,2463.5,2463.0,5.004054]
[1730707457376,8.91425,2463.5,2463.1,0.5554054]
[1730707458286,0.7956,2463.5,2463.1,4.6151754]
[1730707458863,4.85488,2463.5,2463.1,4.6151754]
[1730707459064,4.05916,2463.6,2463.1,4.6151754]
[1730707459263,4.05916,2463.6,2463.2,0.96192294]
[1730707459461,8.11836,2463.6,2463.2,0.96192294]
[1730707460093,4.05916,2463.6,2463.2,5.02157294]
[1730707460252,4.05916,2463.6,2463.2,5.84457294]
[1730707460851,4.62088642,2463.7,2463.2,5.84457294]
[1730707460852,4.81674,2463.7,2463.3,4.05948]
[1730707461057,4.05894,2463.7,2463.4,0.99040529]
[1730707461264,0.7521,2463.9,2463.4,5.04980529]
[1730707461465,4.05861,2463.9,2463.6,0.8329]
[1730707461897,4.05847,2464.0,2463.6,4.89198]
[1730707462591,0.8308,2464.1,2463.7,4.05889]
[1730707462592,4.05831,2464.1,2463.7,4.05889]
[1730707462802,4.05819,2464.2,2463.8,4.05872]
[1730707463012,4.05819,2464.2,2463.7,4.953977]
[1730707463013,4.05828,2464.1,2463.7,4.953977]
[1730707463162,4.05828,2464.1,2463.7,0.895087]
[1730707463163,4.05846,2464.0,2463.7,0.895087]
[1730707463899,8.73255642,2464.3,2463.7,0.895087]
[1730707464095,4.0584,2464.1,2463.7,0.895087]
[1730707464459,4.05846,2464.0,2463.7,0.895087]
[1730707466119,3.86308642,2464.0,2463.6,0.8329]
[1730707466275,4.05872,2463.9,2463.4,4.85685]
[1730707466476,4.05878,2463.8,2463.4,4.85685]
[1730707466718,4.05878,2463.8,2463.4,5.82965866]
[1730707467210,4.05872,2463.9,2463.5,4.0592]
[1730707467211,4.0586,2463.9,2463.5,4.0592]
[1730707467410,3.86308642,2464.0,2463.6,0.55]
[1730707467711,7.92152642,2464.0,2463.6,4.60902]
[1730707470030,4.05817,2464.2,2463.7,4.0588]
[1730707470311,8.11636,2464.2,2463.8,1.668282]
[1730707470528,4.05831,2464.1,2463.8,0.8015]
[1730707471074,4.05817,2464.2,2463.8,4.86025]
[1730707471908,8.1164,2464.2,2463.8,4.86025]
[1730707472108,4.05817,2464.2,2463.8,4.86025]
[1730707472620,4.05817,2464.2,2463.8,0.8015]
[1730707472801,4.05849,2464.0,2463.6,1.3645]
[1730707473005,4.05869,2463.9,2463.6,2.4019409]
[1730707473393,7.92157642,2464.0,2463.6,6.4610209]
[1730707473926,3.86308642,2464.0,2463.4,0.8291]
[1730707474209,3.86308642,2464.0,2463.4,4.88852]
[1730707474210,4.83078,2463.8,2463.4,4.88852]
[1730707474519,4.05878,2463.8,2463.4,4.88852]
[1730707474818,4.05878,2463.8,2463.5,0.894798]
[1730707474984,4.05878,2463.8,2463.4,4.88852]
[1730707475312,4.05878,2463.8,2463.4,4.9696998]
[1730707476189,4.05866,2463.9,2463.5,4.05916]
[1730707476534,8.69361642,2464.0,2463.6,4.05903]
[1730707476535,7.92161642,2464.0,2463.6,4.05903]
[1730707476738,4.05853,2464.0,2463.6,4.953759]
[1730707476916,4.05834,2464.1,2463.7,4.60892]
[1730707477237,4.05855,2464.0,2463.6,4.953789]
[1730707477385,4.05834,2464.1,2463.6,4.953789]
[1730707477386,4.0583,2464.1,2463.7,0.55]
[1730707477730,4.0583,2464.1,2463.8,0.8209]
[1730707477935,4.05829,2464.1,2463.8,1.8592599]
[1730707480498,4.05829,2464.1,2463.6,0.55]
[1730707480499,4.05852,2464.0,2463.6,0.55]
[1730707480914,8.72728642,2464.3,2463.6,4.60901]
[1730707481114,4.05829,2464.1,2463.7,4.0589]
[1730707481444,4.05829,2464.1,2463.8,0.866791]
[1730707483359,4.05816,2464.2,2463.9,0.7548]
[1730707483706,8.72718642,2464.3,2463.9,4.81338]
[1730707483900,12.78528642,2464.3,2463.9,4.81338]
[1730707484352,4.05812,2464.2,2463.9,0.7548]
[1730707484642,4.05812,2464.2,2463.9,1.7287201]
[1730707485840,8.72719642,2464.3,2463.9,5.7872901]
[1730707486309,11.97916642,2464.3,2463.9,5.7872901]
[1730707486656,11.97916642,2464.3,2463.9,4.81337]
[1730707486836,7.92109642,2464.3,2463.9,4.81337]
[1730707487034,4.05811,2464.2,2463.9,0.7548]
[1730707488251,7.92109642,2464.3,2463.9,4.81331]
[1730707488463,7.92109642,2464.3,2464.0,0.481353]
[1730707488633,7.92109642,2464.3,2463.9,4.81331]
[1730707489454,4.05785,2464.4,2464.0,4.05844]
[1730707489617,4.05785,2464.4,2463.9,4.81331]
[1730707489815,4.05795,2464.3,2463.9,4.81331]
[1730707490463,4.05795,2464.3,2463.9,8.87184]
[1730707490660,4.05795,2464.3,2463.9,5.700494]
[1730707490812,4.05761,2464.5,2464.0,4.60834]
[1730707491017,8.74674642,2464.6,2464.0,0.55]
[1730707491018,4.05799,2464.3,2464.0,0.55]
[1730707491848,4.05778,2464.4,2464.0,4.60836]
[1730707492720,7.92060642,2464.6,2464.1,4.86695]
[1730707492958,4.05752,2464.6,2464.2,4.599725]
[1730707493170,7.06678,2465.1,2465.0,0.55]
[1730707493171,0.63542144,2465.1,2465.0,0.55]
[1730707493321,0.0617408,2465.2,2465.1,4.05663]
[1730707494264,0.0617408,2465.2,2465.1,4.68775795]
[1730707494557,0.0617408,2465.2,2465.1,5.64447975]
[1730707494774,0.0617408,2465.2,2465.1,9.3860518]
[1730707500387,0.0617408,2465.2,2465.1,6.3860518]
[1730707500999,0.0617408,2465.2,2465.1,6.46717382]
[1730707501314,0.0617408,2465.2,2465.1,1.7794218]
[1730707501490,0.0617408,2465.2,2465.0,0.55]
[1730707501928,0.0617408,2465.2,2465.0,4.60668]
[1730707502211,0.0617408,2465.2,2465.0,0.55]
[1730707502592,0.0617408,2465.2,2465.0,4.60672]
[1730707503017,0.0617408,2465.2,2465.0,0.55]
[1730707503231,0.0617408,2465.2,2465.1,5.144285]
[1730707503386,0.0617408,2465.2,2465.1,1.087655]
[1730707503785,0.0617408,2465.2,2465.1,5.144285]
[1730707504483,0.0617408,2465.2,2465.1,5.22540931]
[1730707504883,0.0617408,2465.2,2465.1,5.144285]
[1730707505111,0.0617408,2465.2,2465.1,6.03580737]
[1730707506235,0.0617408,2465.2,2465.1,5.954685]
[1730707508855,0.0617408,2465.2,2465.1,6.03580748]
[1730707509009,0.0617408,2465.2,2465.1,5.954685]
[1730707510453,0.0617408,2465.2,2465.1,8.954685]
[1730707511053,4.05538,2465.9,2465.1,8.954685]
[1730707511211,4.05538,2465.9,2465.5,4.05594]
[1730707511415,0.7817,2466.3,2465.7,0.55]
[1730707511639,4.05489,2466.2,2465.8,4.05547]
[1730707512656,4.0549,2466.2,2465.7,4.60554]
[1730707512862,4.05517,2466.0,2465.7,0.55]